Workbook

Sheet Original
B2: Uge nr. | D2: Navn
C8: Starttid 06:00 | D8: Sluttid 20:00 | E8: Forbrugt tid | F8: Starttid 20:00 | G8: Sluttid 06:00 | H8: Forbrugt tid 20:00 - 06:00 | I8: Starttid 06:00 | J8: Sluttid 20:00 | K8: Forbrugt tid | L8: Udført arbejde/vagt nr. | M8: Døgn | N8: Afgang | O8: Slut | P8: Døgn/Timer | Q8: Vend ski | R8: Diæt | S8: Tærepenge | T8: Tærepenge timer
A9: 2024-02-12 | B9: Mandag | C9: 0.75 | D9: 0.08333333333 | E9: =D9-C9+(D9<C9) -> 0.3333333333 | H9: =ColTime(C9,D9,T!A1,T!B1) -> 0.25 | K9: =J9-I9+(J9<I9) -> 0
E10: =D10-C10+(D10<C10) -> 0 | H10: =ColTime(C10,D10,T!A2,T!B2) -> 0 | I10: 0.2916666667 | J10: 0.625 | K10: =J10-I10+(J10<I10) -> 0.3333333333
E11: 0 | H11: =ColTime(C11,D11,T!A3,T!B3) -> 0 | K11: =IF(OR(I11="",J11=""),0,IF(VALUE(I11)>=VALUE(J11),(TIME(TRUNC(J11/100),MOD(J11,100),0))+1-(TIME(TRUNC(I11/100),MOD(I11,100),0)),(TIME(TRUNC(J11/100),MOD(J11,100),0))-(TIME(TRUNC(I11/100),MOD(I11,100),0)))) -> 0
E12: 0 | H12: =ColTime(C12,D12,T!A4,T!B4) -> 0 | K12: 0
B13: Sammenlagt | D13: =E9+E10+E11+E12 -> 08:00:00 | E13: =E9+E10+E11+E12 -> 0.3333333333 | G13: =H9+H10+H11+H12 -> 06:00:00 | H13: =H9+H10+H11+H12 -> 0.25 | J13: =K9+K10+K11+K12 -> 08:00:00 | K13: =K9+K10+K11+K12 -> 0.3333333333
A14: =A9+1 -> 2024-02-13 | B14: Tirsdag | E14: =IF(OR(C14="",D14=""),0,IF(VALUE(C14)>=VALUE(D14),(TIME(TRUNC(D14/100),MOD(D14,100),0))+1-(TIME(TRUNC(C14/100),MOD(C14,100),0)),(TIME(TRUNC(D14/100),MOD(D14,100),0))-(TIME(TRUNC(C14/100),MOD(C14,100),0)))) -> 0 | H14: =IF(OR(F14="",G14=""),0,IF(VALUE(F14)>=VALUE(G14),(TIME(TRUNC(G14/100),MOD(G14,100),0))+1-(TIME(TRUNC(F14/100),MOD(F14,100),0)),(TIME(TRUNC(G14/100),MOD(G14,100),0))-(TIME(TRUNC(F14/100),MOD(F14,100),0)))) -> 0 | K14: =IF(OR(I14="",J14=""),0,IF(VALUE(I14)>=VALUE(J14),(TIME(TRUNC(J14/100),MOD(J14,100),0))+1-(TIME(TRUNC(I14/100),MOD(I14,100),0)),(TIME(TRUNC(J14/100),MOD(J14,100),0))-(TIME(TRUNC(I14/100),MOD(I14,100),0)))) -> 0
E15: =IF(OR(C15="",D15=""),0,IF(VALUE(C15)>=VALUE(D15),(TIME(TRUNC(D15/100),MOD(D15,100),0))+1-(TIME(TRUNC(C15/100),MOD(C15,100),0)),(TIME(TRUNC(D15/100),MOD(D15,100),0))-(TIME(TRUNC(C15/100),MOD(C15,100),0)))) -> 0 | H15: =IF(OR(F15="",G15=""),0,IF(VALUE(F15)>=VALUE(G15),(TIME(TRUNC(G15/100),MOD(G15,100),0))+1-(TIME(TRUNC(F15/100),MOD(F15,100),0)),(TIME(TRUNC(G15/100),MOD(G15,100),0))-(TIME(TRUNC(F15/100),MOD(F15,100),0)))) -> 0 | K15: =IF(OR(I15="",J15=""),0,IF(VALUE(I15)>=VALUE(J15),(TIME(TRUNC(J15/100),MOD(J15,100),0))+1-(TIME(TRUNC(I15/100),MOD(I15,100),0)),(TIME(TRUNC(J15/100),MOD(J15,100),0))-(TIME(TRUNC(I15/100),MOD(I15,100),0)))) -> 0
E16: 0 | H16: 0 | K16: 0
E17: 0 | H17: 0 | K17: 0
B18: Sammenlagt | D18: =E14+E15+E16+E17 -> 00:00:00 | E18: =E14+E15+E16+E17 -> 0 | G18: =H14+H15+H16+H17 -> 00:00:00 | H18: =H14+H15+H16+H17 -> 0 | J18: =K14+K15+K16+K17 -> 00:00:00 | K18: =K14+K15+K16+K17 -> 0
A19: =A14+1 -> 2024-02-14 | B19: Onsdag | C19: 0 | D19: 2400 | E19: =IF(OR(C19="",D19=""),0,IF(VALUE(C19)>=VALUE(D19),(TIME(TRUNC(D19/100),MOD(D19,100),0))+1-(TIME(TRUNC(C19/100),MOD(C19,100),0)),(TIME(TRUNC(D19/100),MOD(D19,100),0))-(TIME(TRUNC(C19/100),MOD(C19,100),0)))) -> 0 | F19: 0 | G19: 2400 | H19: =IF(OR(F19="",G19=""),0,IF(VALUE(F19)>=VALUE(G19),(TIME(TRUNC(G19/100),MOD(G19,100),0))+1-(TIME(TRUNC(F19/100),MOD(F19,100),0)),(TIME(TRUNC(G19/100),MOD(G19,100),0))-(TIME(TRUNC(F19/100),MOD(F19,100),0)))) -> 0 | K19: =IF(OR(I19="",J19=""),0,IF(VALUE(I19)>=VALUE(J19),(TIME(TRUNC(J19/100),MOD(J19,100),0))+1-(TIME(TRUNC(I19/100),MOD(I19,100),0)),(TIME(TRUNC(J19/100),MOD(J19,100),0))-(TIME(TRUNC(I19/100),MOD(I19,100),0)))) -> 0
C20: 0 | D20: 2400 | E20: =IF(OR(C20="",D20=""),0,IF(VALUE(C20)>=VALUE(D20),(TIME(TRUNC(D20/100),MOD(D20,100),0))+1-(TIME(TRUNC(C20/100),MOD(C20,100),0)),(TIME(TRUNC(D20/100),MOD(D20,100),0))-(TIME(TRUNC(C20/100),MOD(C20,100),0)))) -> 0 | F20: 0 | G20: 2400 | H20: =IF(OR(F20="",G20=""),0,IF(VALUE(F20)>=VALUE(G20),(TIME(TRUNC(G20/100),MOD(G20,100),0))+1-(TIME(TRUNC(F20/100),MOD(F20,100),0)),(TIME(TRUNC(G20/100),MOD(G20,100),0))-(TIME(TRUNC(F20/100),MOD(F20,100),0)))) -> 0 | K20: =IF(OR(I20="",J20=""),0,IF(VALUE(I20)>=VALUE(J20),(TIME(TRUNC(J20/100),MOD(J20,100),0))+1-(TIME(TRUNC(I20/100),MOD(I20,100),0)),(TIME(TRUNC(J20/100),MOD(J20,100),0))-(TIME(TRUNC(I20/100),MOD(I20,100),0)))) -> 0
C21: 0 | D21: 2400 | E21: 0 | F21: 0 | G21: 2400 | H21: 0 | K21: 0
C22: 0 | D22: 2400 | E22: 0 | F22: 0 | G22: 2400 | H22: 0 | K22: 0
B23: Sammenlagt | D23: =E19+E20+E21+E22 -> 00:00:00 | E23: =E19+E20+E21+E22 -> 0 | G23: =H19+H20+H21+H22 -> 00:00:00 | H23: =H19+H20+H21+H22 -> 0 | J23: =K19+K20+K21+K22 -> 00:00:00 | K23: =K19+K20+K21+K22 -> 0
A24: =A19+1 -> 2024-02-15 | B24: Torsdag | C24: 0 | D24: 2400 | E24: =IF(OR(C24="",D24=""),0,IF(VALUE(C24)>=VALUE(D24),(TIME(TRUNC(D24/100),MOD(D24,100),0))+1-(TIME(TRUNC(C24/100),MOD(C24,100),0)),(TIME(TRUNC(D24/100),MOD(D24,100),0))-(TIME(TRUNC(C24/100),MOD(C24,100),0)))) -> 0 | F24: 0 | G24: 2400 | H24: =IF(OR(F24="",G24=""),0,IF(VALUE(F24)>=VALUE(G24),(TIME(TRUNC(G24/100),MOD(G24,100),0))+1-(TIME(TRUNC(F24/100),MOD(F24,100),0)),(TIME(TRUNC(G24/100),MOD(G24,100),0))-(TIME(TRUNC(F24/100),MOD(F24,100),0)))) -> 0 | K24: =IF(OR(I24="",J24=""),0,IF(VALUE(I24)>=VALUE(J24),(TIME(TRUNC(J24/100),MOD(J24,100),0))+1-(TIME(TRUNC(I24/100),MOD(I24,100),0)),(TIME(TRUNC(J24/100),MOD(J24,100),0))-(TIME(TRUNC(I24/100),MOD(I24,100),0)))) -> 0
C25: 0 | D25: 2400 | E25: =IF(OR(C25="",D25=""),0,IF(VALUE(C25)>=VALUE(D25),(TIME(TRUNC(D25/100),MOD(D25,100),0))+1-(TIME(TRUNC(C25/100),MOD(C25,100),0)),(TIME(TRUNC(D25/100),MOD(D25,100),0))-(TIME(TRUNC(C25/100),MOD(C25,100),0)))) -> 0 | F25: 0 | G25: 2400 | H25: =IF(OR(F25="",G25=""),0,IF(VALUE(F25)>=VALUE(G25),(TIME(TRUNC(G25/100),MOD(G25,100),0))+1-(TIME(TRUNC(F25/100),MOD(F25,100),0)),(TIME(TRUNC(G25/100),MOD(G25,100),0))-(TIME(TRUNC(F25/100),MOD(F25,100),0)))) -> 0 | K25: =IF(OR(I25="",J25=""),0,IF(VALUE(I25)>=VALUE(J25),(TIME(TRUNC(J25/100),MOD(J25,100),0))+1-(TIME(TRUNC(I25/100),MOD(I25,100),0)),(TIME(TRUNC(J25/100),MOD(J25,100),0))-(TIME(TRUNC(I25/100),MOD(I25,100),0)))) -> 0
C26: 0 | D26: 2400 | E26: 0 | F26: 0 | G26: 2400 | H26: 0 | K26: 0
C27: 0 | D27: 2400 | E27: 0 | F27: 0 | G27: 2400 | H27: 0 | K27: 0
B28: Sammenlagt | D28: =E24+E25+E26+E27 -> 00:00:00 | E28: =E24+E25+E26+E27 -> 0 | G28: =H24+H25+H26+H27 -> 00:00:00 | H28: =H24+H25+H26+H27 -> 0 | J28: =K24+K25+K26+K27 -> 00:00:00 | K28: =K24+K25+K26+K27 -> 0
A29: =A24+1 -> 2024-02-16 | B29: Fredag | C29: 0 | D29: 2400 | E29: =IF(OR(C29="",D29=""),0,IF(VALUE(C29)>=VALUE(D29),(TIME(TRUNC(D29/100),MOD(D29,100),0))+1-(TIME(TRUNC(C29/100),MOD(C29,100),0)),(TIME(TRUNC(D29/100),MOD(D29,100),0))-(TIME(TRUNC(C29/100),MOD(C29,100),0)))) -> 0 | F29: 0 | G29: 2400 | H29: =IF(OR(F29="",G29=""),0,IF(VALUE(F29)>=VALUE(G29),(TIME(TRUNC(G29/100),MOD(G29,100),0))+1-(TIME(TRUNC(F29/100),MOD(F29,100),0)),(TIME(TRUNC(G29/100),MOD(G29,100),0))-(TIME(TRUNC(F29/100),MOD(F29,100),0)))) -> 0 | I29: 0 | J29: 2400 | K29: =IF(OR(I29="",J29=""),0,IF(VALUE(I29)>=VALUE(J29),(TIME(TRUNC(J29/100),MOD(J29,100),0))+1-(TIME(TRUNC(I29/100),MOD(I29,100),0)),(TIME(TRUNC(J29/100),MOD(J29,100),0))-(TIME(TRUNC(I29/100),MOD(I29,100),0)))) -> 0
C30: 0 | D30: 2400 | E30: =IF(OR(C30="",D30=""),0,IF(VALUE(C30)>=VALUE(D30),(TIME(TRUNC(D30/100),MOD(D30,100),0))+1-(TIME(TRUNC(C30/100),MOD(C30,100),0)),(TIME(TRUNC(D30/100),MOD(D30,100),0))-(TIME(TRUNC(C30/100),MOD(C30,100),0)))) -> 0 | F30: 0 | G30: 2400 | H30: =IF(OR(F30="",G30=""),0,IF(VALUE(F30)>=VALUE(G30),(TIME(TRUNC(G30/100),MOD(G30,100),0))+1-(TIME(TRUNC(F30/100),MOD(F30,100),0)),(TIME(TRUNC(G30/100),MOD(G30,100),0))-(TIME(TRUNC(F30/100),MOD(F30,100),0)))) -> 0 | I30: 0 | J30: 2400 | K30: =IF(OR(I30="",J30=""),0,IF(VALUE(I30)>=VALUE(J30),(TIME(TRUNC(J30/100),MOD(J30,100),0))+1-(TIME(TRUNC(I30/100),MOD(I30,100),0)),(TIME(TRUNC(J30/100),MOD(J30,100),0))-(TIME(TRUNC(I30/100),MOD(I30,100),0)))) -> 0
C31: 0 | D31: 2400 | E31: 0 | F31: 0 | G31: 2400 | H31: 0 | I31: 0 | J31: 2400 | K31: 0
C32: 0 | D32: 2400 | E32: 0 | F32: 0 | G32: 2400 | H32: 0 | I32: 0 | J32: 2400 | K32: 0
B33: Sammenlagt | D33: =E29+E30+E31+E32 -> 00:00:00 | E33: =E29+E30+E31+E32 -> 0 | G33: =H29+H30+H31+H32 -> 00:00:00 | H33: =H29+H30+H31+H32 -> 0 | J33: =K29+K30+K31+K32 -> 00:00:00 | K33: =K29+K30+K31+K32 -> 0
A34: =A29+1 -> 2024-02-17 | B34: Lørdag | C34: 0 | D34: 2400 | E34: =IF(OR(C34="",D34=""),0,IF(VALUE(C34)>=VALUE(D34),(TIME(TRUNC(D34/100),MOD(D34,100),0))+1-(TIME(TRUNC(C34/100),MOD(C34,100),0)),(TIME(TRUNC(D34/100),MOD(D34,100),0))-(TIME(TRUNC(C34/100),MOD(C34,100),0)))) -> 0 | F34: 0 | G34: 2400 | H34: =IF(OR(F34="",G34=""),0,IF(VALUE(F34)>=VALUE(G34),(TIME(TRUNC(G34/100),MOD(G34,100),0))+1-(TIME(TRUNC(F34/100),MOD(F34,100),0)),(TIME(TRUNC(G34/100),MOD(G34,100),0))-(TIME(TRUNC(F34/100),MOD(F34,100),0)))) -> 0 | I34: 0 | J34: 2400 | K34: =IF(OR(I34="",J34=""),0,IF(VALUE(I34)>=VALUE(J34),(TIME(TRUNC(J34/100),MOD(J34,100),0))+1-(TIME(TRUNC(I34/100),MOD(I34,100),0)),(TIME(TRUNC(J34/100),MOD(J34,100),0))-(TIME(TRUNC(I34/100),MOD(I34,100),0)))) -> 0
C35: 0 | D35: 2400 | E35: =IF(OR(C35="",D35=""),0,IF(VALUE(C35)>=VALUE(D35),(TIME(TRUNC(D35/100),MOD(D35,100),0))+1-(TIME(TRUNC(C35/100),MOD(C35,100),0)),(TIME(TRUNC(D35/100),MOD(D35,100),0))-(TIME(TRUNC(C35/100),MOD(C35,100),0)))) -> 0 | F35: 0 | G35: 2400 | H35: =IF(OR(F35="",G35=""),0,IF(VALUE(F35)>=VALUE(G35),(TIME(TRUNC(G35/100),MOD(G35,100),0))+1-(TIME(TRUNC(F35/100),MOD(F35,100),0)),(TIME(TRUNC(G35/100),MOD(G35,100),0))-(TIME(TRUNC(F35/100),MOD(F35,100),0)))) -> 0 | I35: 0 | J35: 2400 | K35: =IF(OR(I35="",J35=""),0,IF(VALUE(I35)>=VALUE(J35),(TIME(TRUNC(J35/100),MOD(J35,100),0))+1-(TIME(TRUNC(I35/100),MOD(I35,100),0)),(TIME(TRUNC(J35/100),MOD(J35,100),0))-(TIME(TRUNC(I35/100),MOD(I35,100),0)))) -> 0
C36: 0 | D36: 2400 | E36: 0 | F36: 0 | G36: 2400 | H36: 0 | I36: 0 | J36: 2400 | K36: 0
C37: 0 | D37: 2400 | E37: 0 | F37: 0 | G37: 2400 | H37: 0 | I37: 0 | J37: 2400 | K37: 0
B38: Sammenlagt | D38: =E34+E35+E36+E37 -> 00:00:00 | E38: =E34+E35+E36+E37 -> 0 | G38: =H34+H35+H36+H37 -> 00:00:00 | H38: =H34+H35+H36+H37 -> 0 | J38: =K34+K35+K36+K37 -> 00:00:00 | K38: =K34+K35+K36+K37 -> 0
A39: =A34+1 -> 2024-02-18 | B39: Søndag | C39: 0 | D39: 2400 | E39: =IF(OR(C39="",D39=""),0,IF(VALUE(C39)>=VALUE(D39),(TIME(TRUNC(D39/100),MOD(D39,100),0))+1-(TIME(TRUNC(C39/100),MOD(C39,100),0)),(TIME(TRUNC(D39/100),MOD(D39,100),0))-(TIME(TRUNC(C39/100),MOD(C39,100),0)))) -> 0 | F39: 0 | G39: 2400 | H39: =IF(OR(F39="",G39=""),0,IF(VALUE(F39)>=VALUE(G39),(TIME(TRUNC(G39/100),MOD(G39,100),0))+1-(TIME(TRUNC(F39/100),MOD(F39,100),0)),(TIME(TRUNC(G39/100),MOD(G39,100),0))-(TIME(TRUNC(F39/100),MOD(F39,100),0)))) -> 0 | I39: 0 | J39: 2400 | K39: =IF(OR(I39="",J39=""),0,IF(VALUE(I39)>=VALUE(J39),(TIME(TRUNC(J39/100),MOD(J39,100),0))+1-(TIME(TRUNC(I39/100),MOD(I39,100),0)),(TIME(TRUNC(J39/100),MOD(J39,100),0))-(TIME(TRUNC(I39/100),MOD(I39,100),0)))) -> 0
C40: 0 | D40: 2400 | E40: =IF(OR(C40="",D40=""),0,IF(VALUE(C40)>=VALUE(D40),(TIME(TRUNC(D40/100),MOD(D40,100),0))+1-(TIME(TRUNC(C40/100),MOD(C40,100),0)),(TIME(TRUNC(D40/100),MOD(D40,100),0))-(TIME(TRUNC(C40/100),MOD(C40,100),0)))) -> 0 | F40: 0 | G40: 2400 | H40: =IF(OR(F40="",G40=""),0,IF(VALUE(F40)>=VALUE(G40),(TIME(TRUNC(G40/100),MOD(G40,100),0))+1-(TIME(TRUNC(F40/100),MOD(F40,100),0)),(TIME(TRUNC(G40/100),MOD(G40,100),0))-(TIME(TRUNC(F40/100),MOD(F40,100),0)))) -> 0 | I40: 0 | J40: 2400 | K40: =IF(OR(I40="",J40=""),0,IF(VALUE(I40)>=VALUE(J40),(TIME(TRUNC(J40/100),MOD(J40,100),0))+1-(TIME(TRUNC(I40/100),MOD(I40,100),0)),(TIME(TRUNC(J40/100),MOD(J40,100),0))-(TIME(TRUNC(I40/100),MOD(I40,100),0)))) -> 0
C41: 0 | D41: 2400 | E41: 0 | F41: 0 | G41: 2400 | H41: 0 | I41: 0 | J41: 2400 | K41: 0
C42: 0 | D42: 2400 | E42: 0 | F42: 0 | G42: 2400 | H42: 0 | I42: 0 | J42: 2400 | K42: 0
B43: Sammenlagt | D43: =E39+E40+E41+E42 -> 00:00:00 | E43: =E39+E40+E41+E42 -> 0 | G43: =H39+H40+H41+H42 -> 00:00:00 | H43: =H39+H40+H41+H42 -> 0 | J43: =K39+K40+K41+K42 -> 00:00:00 | K43: =K39+K40+K41+K42 -> 0
D44: Sum timer | E44: =(E13+E18+E23+E28+E33+E38+E43)*24 -> 8 | G44: Sum timer | H44: =(H13+H18+H23+H28+H33+H38+H43)*24 -> 6 | J44: Sum timer | K44: =(K13+K18+K23+K28+K33+K38+K43)*24 -> 8 | M44: =SUM(M9:M43) -> 0 | P44: =SUM(P9:P43) -> 0 | Q44: =SUM(Q9:Q43) -> 0 | R44: =SUM(R9:R43) -> 0 | S44: =SUM(S9:S43) -> 0 | T44: =SUM(T9:T43) -> 0
B47: Uge nr. | D47: Navn
C53: Starttid 06:00 | D53: Sluttid 20:00 | E53: Forbrugt tid | F53: Starttid 20:00 | G53: Sluttid 06:00 | H53: Forbrugt tid | I53: Starttid 06:00 | J53: Sluttid 20:00 | K53: Forbrugt tid | L53: Udført arbejde/vagt nr. | M53: Døgn | N53: Afgang | O53: Slut | P53: Døgn/Timer | Q53: Vend ski | R53: Diæt | S53: Tærepenge | T53: Tærepenge timer
A54: 2024-02-19 | B54: Mandag | C54: 0 | D54: 2400 | E54: =IF(OR(C54="",D54=""),0,IF(VALUE(C54)>=VALUE(D54),(TIME(TRUNC(D54/100),MOD(D54,100),0))+1-(TIME(TRUNC(C54/100),MOD(C54,100),0)),(TIME(TRUNC(D54/100),MOD(D54,100),0))-(TIME(TRUNC(C54/100),MOD(C54,100),0)))) -> 0 | H54: =IF(OR(F54="",G54=""),0,IF(VALUE(F54)>=VALUE(G54),(TIME(TRUNC(G54/100),MOD(G54,100),0))+1-(TIME(TRUNC(F54/100),MOD(F54,100),0)),(TIME(TRUNC(G54/100),MOD(G54,100),0))-(TIME(TRUNC(F54/100),MOD(F54,100),0)))) -> 0 | I54: 0 | J54: 2400 | K54: =IF(OR(I54="",J54=""),0,IF(VALUE(I54)>=VALUE(J54),(TIME(TRUNC(J54/100),MOD(J54,100),0))+1-(TIME(TRUNC(I54/100),MOD(I54,100),0)),(TIME(TRUNC(J54/100),MOD(J54,100),0))-(TIME(TRUNC(I54/100),MOD(I54,100),0)))) -> 0
C55: 0 | D55: 2400 | E55: =IF(OR(C55="",D55=""),0,IF(VALUE(C55)>=VALUE(D55),(TIME(TRUNC(D55/100),MOD(D55,100),0))+1-(TIME(TRUNC(C55/100),MOD(C55,100),0)),(TIME(TRUNC(D55/100),MOD(D55,100),0))-(TIME(TRUNC(C55/100),MOD(C55,100),0)))) -> 0 | H55: =IF(OR(F55="",G55=""),0,IF(VALUE(F55)>=VALUE(G55),(TIME(TRUNC(G55/100),MOD(G55,100),0))+1-(TIME(TRUNC(F55/100),MOD(F55,100),0)),(TIME(TRUNC(G55/100),MOD(G55,100),0))-(TIME(TRUNC(F55/100),MOD(F55,100),0)))) -> 0 | I55: 0 | J55: 2400 | K55: =IF(OR(I55="",J55=""),0,IF(VALUE(I55)>=VALUE(J55),(TIME(TRUNC(J55/100),MOD(J55,100),0))+1-(TIME(TRUNC(I55/100),MOD(I55,100),0)),(TIME(TRUNC(J55/100),MOD(J55,100),0))-(TIME(TRUNC(I55/100),MOD(I55,100),0)))) -> 0
C56: 0 | D56: 2400 | E56: 0 | H56: 0 | I56: 0 | J56: 2400 | K56: 0
C57: 0 | D57: 2400 | E57: 0 | H57: 0 | I57: 0 | J57: 2400 | K57: 0
B58: Sammenlagt | D58: =E54+E55+E56+E57 -> 00:00:00 | E58: =E54+E55+E56+E57 -> 0 | G58: =H54+H55+H56+H57 -> 00:00:00 | H58: =H54+H55+H56+H57 -> 0 | J58: =K54+K55+K56+K57 -> 00:00:00 | K58: =K54+K55+K56+K57 -> 0
A59: =A54+1 -> 2024-02-20 | B59: Tirsdag | C59: 0 | D59: 2400 | E59: =IF(OR(C59="",D59=""),0,IF(VALUE(C59)>=VALUE(D59),(TIME(TRUNC(D59/100),MOD(D59,100),0))+1-(TIME(TRUNC(C59/100),MOD(C59,100),0)),(TIME(TRUNC(D59/100),MOD(D59,100),0))-(TIME(TRUNC(C59/100),MOD(C59,100),0)))) -> 0 | F59: 0 | G59: 2400 | H59: =IF(OR(F59="",G59=""),0,IF(VALUE(F59)>=VALUE(G59),(TIME(TRUNC(G59/100),MOD(G59,100),0))+1-(TIME(TRUNC(F59/100),MOD(F59,100),0)),(TIME(TRUNC(G59/100),MOD(G59,100),0))-(TIME(TRUNC(F59/100),MOD(F59,100),0)))) -> 0 | I59: 0 | J59: 2400 | K59: =IF(OR(I59="",J59=""),0,IF(VALUE(I59)>=VALUE(J59),(TIME(TRUNC(J59/100),MOD(J59,100),0))+1-(TIME(TRUNC(I59/100),MOD(I59,100),0)),(TIME(TRUNC(J59/100),MOD(J59,100),0))-(TIME(TRUNC(I59/100),MOD(I59,100),0)))) -> 0
C60: 0 | D60: 2400 | E60: =IF(OR(C60="",D60=""),0,IF(VALUE(C60)>=VALUE(D60),(TIME(TRUNC(D60/100),MOD(D60,100),0))+1-(TIME(TRUNC(C60/100),MOD(C60,100),0)),(TIME(TRUNC(D60/100),MOD(D60,100),0))-(TIME(TRUNC(C60/100),MOD(C60,100),0)))) -> 0 | F60: 0 | G60: 2400 | H60: =IF(OR(F60="",G60=""),0,IF(VALUE(F60)>=VALUE(G60),(TIME(TRUNC(G60/100),MOD(G60,100),0))+1-(TIME(TRUNC(F60/100),MOD(F60,100),0)),(TIME(TRUNC(G60/100),MOD(G60,100),0))-(TIME(TRUNC(F60/100),MOD(F60,100),0)))) -> 0 | I60: 0 | J60: 2400 | K60: =IF(OR(I60="",J60=""),0,IF(VALUE(I60)>=VALUE(J60),(TIME(TRUNC(J60/100),MOD(J60,100),0))+1-(TIME(TRUNC(I60/100),MOD(I60,100),0)),(TIME(TRUNC(J60/100),MOD(J60,100),0))-(TIME(TRUNC(I60/100),MOD(I60,100),0)))) -> 0
C61: 0 | D61: 2400 | E61: 0 | F61: 0 | G61: 2400 | H61: 0 | I61: 0 | J61: 2400 | K61: 0
C62: 0 | D62: 2400 | E62: 0 | F62: 0 | G62: 2400 | H62: 0 | I62: 0 | J62: 2400 | K62: 0
B63: Sammenlagt | D63: =E59+E60+E61+E62 -> 00:00:00 | E63: =E59+E60+E61+E62 -> 0 | G63: =H59+H60+H61+H62 -> 00:00:00 | H63: =H59+H60+H61+H62 -> 0 | J63: =K59+K60+K61+K62 -> 00:00:00 | K63: =K59+K60+K61+K62 -> 0
A64: =A59+1 -> 2024-02-21 | B64: Onsdag | C64: 0 | D64: 2400 | E64: =IF(OR(C64="",D64=""),0,IF(VALUE(C64)>=VALUE(D64),(TIME(TRUNC(D64/100),MOD(D64,100),0))+1-(TIME(TRUNC(C64/100),MOD(C64,100),0)),(TIME(TRUNC(D64/100),MOD(D64,100),0))-(TIME(TRUNC(C64/100),MOD(C64,100),0)))) -> 0 | F64: 0 | G64: 2400 | H64: =IF(OR(F64="",G64=""),0,IF(VALUE(F64)>=VALUE(G64),(TIME(TRUNC(G64/100),MOD(G64,100),0))+1-(TIME(TRUNC(F64/100),MOD(F64,100),0)),(TIME(TRUNC(G64/100),MOD(G64,100),0))-(TIME(TRUNC(F64/100),MOD(F64,100),0)))) -> 0 | I64: 0 | J64: 2400 | K64: =IF(OR(I64="",J64=""),0,IF(VALUE(I64)>=VALUE(J64),(TIME(TRUNC(J64/100),MOD(J64,100),0))+1-(TIME(TRUNC(I64/100),MOD(I64,100),0)),(TIME(TRUNC(J64/100),MOD(J64,100),0))-(TIME(TRUNC(I64/100),MOD(I64,100),0)))) -> 0
C65: 0 | D65: 2400 | E65: =IF(OR(C65="",D65=""),0,IF(VALUE(C65)>=VALUE(D65),(TIME(TRUNC(D65/100),MOD(D65,100),0))+1-(TIME(TRUNC(C65/100),MOD(C65,100),0)),(TIME(TRUNC(D65/100),MOD(D65,100),0))-(TIME(TRUNC(C65/100),MOD(C65,100),0)))) -> 0 | F65: 0 | G65: 2400 | H65: =IF(OR(F65="",G65=""),0,IF(VALUE(F65)>=VALUE(G65),(TIME(TRUNC(G65/100),MOD(G65,100),0))+1-(TIME(TRUNC(F65/100),MOD(F65,100),0)),(TIME(TRUNC(G65/100),MOD(G65,100),0))-(TIME(TRUNC(F65/100),MOD(F65,100),0)))) -> 0 | I65: 0 | J65: 2400 | K65: =IF(OR(I65="",J65=""),0,IF(VALUE(I65)>=VALUE(J65),(TIME(TRUNC(J65/100),MOD(J65,100),0))+1-(TIME(TRUNC(I65/100),MOD(I65,100),0)),(TIME(TRUNC(J65/100),MOD(J65,100),0))-(TIME(TRUNC(I65/100),MOD(I65,100),0)))) -> 0
C66: 0 | D66: 2400 | E66: 0 | F66: 0 | G66: 2400 | H66: 0 | I66: 0 | J66: 2400 | K66: 0
C67: 0 | D67: 2400 | E67: 0 | F67: 0 | G67: 2400 | H67: 0 | I67: 0 | J67: 2400 | K67: 0
B68: Sammenlagt | D68: =E64+E65+E66+E67 -> 00:00:00 | E68: =E64+E65+E66+E67 -> 0 | G68: =H64+H65+H66+H67 -> 00:00:00 | H68: =H64+H65+H66+H67 -> 0 | J68: =K64+K65+K66+K67 -> 00:00:00 | K68: =K64+K65+K66+K67 -> 0
A69: =A64+1 -> 2024-02-22 | B69: Torsdag | C69: 0 | D69: 2400 | E69: =IF(OR(C69="",D69=""),0,IF(VALUE(C69)>=VALUE(D69),(TIME(TRUNC(D69/100),MOD(D69,100),0))+1-(TIME(TRUNC(C69/100),MOD(C69,100),0)),(TIME(TRUNC(D69/100),MOD(D69,100),0))-(TIME(TRUNC(C69/100),MOD(C69,100),0)))) -> 0 | F69: 0 | G69: 2400 | H69: =IF(OR(F69="",G69=""),0,IF(VALUE(F69)>=VALUE(G69),(TIME(TRUNC(G69/100),MOD(G69,100),0))+1-(TIME(TRUNC(F69/100),MOD(F69,100),0)),(TIME(TRUNC(G69/100),MOD(G69,100),0))-(TIME(TRUNC(F69/100),MOD(F69,100),0)))) -> 0 | I69: 0 | J69: 2400 | K69: =IF(OR(I69="",J69=""),0,IF(VALUE(I69)>=VALUE(J69),(TIME(TRUNC(J69/100),MOD(J69,100),0))+1-(TIME(TRUNC(I69/100),MOD(I69,100),0)),(TIME(TRUNC(J69/100),MOD(J69,100),0))-(TIME(TRUNC(I69/100),MOD(I69,100),0)))) -> 0
C70: 0 | D70: 2400 | E70: =IF(OR(C70="",D70=""),0,IF(VALUE(C70)>=VALUE(D70),(TIME(TRUNC(D70/100),MOD(D70,100),0))+1-(TIME(TRUNC(C70/100),MOD(C70,100),0)),(TIME(TRUNC(D70/100),MOD(D70,100),0))-(TIME(TRUNC(C70/100),MOD(C70,100),0)))) -> 0 | F70: 0 | G70: 2400 | H70: =IF(OR(F70="",G70=""),0,IF(VALUE(F70)>=VALUE(G70),(TIME(TRUNC(G70/100),MOD(G70,100),0))+1-(TIME(TRUNC(F70/100),MOD(F70,100),0)),(TIME(TRUNC(G70/100),MOD(G70,100),0))-(TIME(TRUNC(F70/100),MOD(F70,100),0)))) -> 0 | I70: 0 | J70: 2400 | K70: =IF(OR(I70="",J70=""),0,IF(VALUE(I70)>=VALUE(J70),(TIME(TRUNC(J70/100),MOD(J70,100),0))+1-(TIME(TRUNC(I70/100),MOD(I70,100),0)),(TIME(TRUNC(J70/100),MOD(J70,100),0))-(TIME(TRUNC(I70/100),MOD(I70,100),0)))) -> 0
C71: 0 | D71: 2400 | E71: 0 | F71: 0 | G71: 2400 | H71: 0 | I71: 0 | J71: 2400 | K71: 0
C72: 0 | D72: 2400 | E72: 0 | F72: 0 | G72: 2400 | H72: 0 | I72: 0 | J72: 2400 | K72: 0
B73: Sammenlagt | D73: =E69+E70+E71+E72 -> 00:00:00 | E73: =E69+E70+E71+E72 -> 0 | G73: =H69+H70+H71+H72 -> 00:00:00 | H73: =H69+H70+H71+H72 -> 0 | J73: =K69+K70+K71+K72 -> 00:00:00 | K73: =K69+K70+K71+K72 -> 0
A74: =A69+1 -> 2024-02-23 | B74: Fredag | C74: 0 | D74: 2400 | E74: =IF(OR(C74="",D74=""),0,IF(VALUE(C74)>=VALUE(D74),(TIME(TRUNC(D74/100),MOD(D74,100),0))+1-(TIME(TRUNC(C74/100),MOD(C74,100),0)),(TIME(TRUNC(D74/100),MOD(D74,100),0))-(TIME(TRUNC(C74/100),MOD(C74,100),0)))) -> 0 | F74: 0 | G74: 2400 | H74: =IF(OR(F74="",G74=""),0,IF(VALUE(F74)>=VALUE(G74),(TIME(TRUNC(G74/100),MOD(G74,100),0))+1-(TIME(TRUNC(F74/100),MOD(F74,100),0)),(TIME(TRUNC(G74/100),MOD(G74,100),0))-(TIME(TRUNC(F74/100),MOD(F74,100),0)))) -> 0 | I74: 0 | J74: 2400 | K74: =IF(OR(I74="",J74=""),0,IF(VALUE(I74)>=VALUE(J74),(TIME(TRUNC(J74/100),MOD(J74,100),0))+1-(TIME(TRUNC(I74/100),MOD(I74,100),0)),(TIME(TRUNC(J74/100),MOD(J74,100),0))-(TIME(TRUNC(I74/100),MOD(I74,100),0)))) -> 0
C75: 0 | D75: 2400 | E75: =IF(OR(C75="",D75=""),0,IF(VALUE(C75)>=VALUE(D75),(TIME(TRUNC(D75/100),MOD(D75,100),0))+1-(TIME(TRUNC(C75/100),MOD(C75,100),0)),(TIME(TRUNC(D75/100),MOD(D75,100),0))-(TIME(TRUNC(C75/100),MOD(C75,100),0)))) -> 0 | F75: 0 | G75: 2400 | H75: =IF(OR(F75="",G75=""),0,IF(VALUE(F75)>=VALUE(G75),(TIME(TRUNC(G75/100),MOD(G75,100),0))+1-(TIME(TRUNC(F75/100),MOD(F75,100),0)),(TIME(TRUNC(G75/100),MOD(G75,100),0))-(TIME(TRUNC(F75/100),MOD(F75,100),0)))) -> 0 | I75: 0 | J75: 2400 | K75: =IF(OR(I75="",J75=""),0,IF(VALUE(I75)>=VALUE(J75),(TIME(TRUNC(J75/100),MOD(J75,100),0))+1-(TIME(TRUNC(I75/100),MOD(I75,100),0)),(TIME(TRUNC(J75/100),MOD(J75,100),0))-(TIME(TRUNC(I75/100),MOD(I75,100),0)))) -> 0
C76: 0 | D76: 2400 | E76: 0 | F76: 0 | G76: 2400 | H76: 0 | I76: 0 | J76: 2400 | K76: 0
C77: 0 | D77: 2400 | E77: 0 | F77: 0 | G77: 2400 | H77: 0 | I77: 0 | J77: 2400 | K77: 0
B78: Sammenlagt | D78: =E74+E75+E76+E77 -> 00:00:00 | E78: =E74+E75+E76+E77 -> 0 | G78: =H74+H75+H76+H77 -> 00:00:00 | H78: =H74+H75+H76+H77 -> 0 | J78: =K74+K75+K76+K77 -> 00:00:00 | K78: =K74+K75+K76+K77 -> 0
A79: =A74+1 -> 2024-02-24 | B79: Lørdag | C79: 0 | D79: 2400 | E79: =IF(OR(C79="",D79=""),0,IF(VALUE(C79)>=VALUE(D79),(TIME(TRUNC(D79/100),MOD(D79,100),0))+1-(TIME(TRUNC(C79/100),MOD(C79,100),0)),(TIME(TRUNC(D79/100),MOD(D79,100),0))-(TIME(TRUNC(C79/100),MOD(C79,100),0)))) -> 0 | F79: 0 | G79: 2400 | H79: =IF(OR(F79="",G79=""),0,IF(VALUE(F79)>=VALUE(G79),(TIME(TRUNC(G79/100),MOD(G79,100),0))+1-(TIME(TRUNC(F79/100),MOD(F79,100),0)),(TIME(TRUNC(G79/100),MOD(G79,100),0))-(TIME(TRUNC(F79/100),MOD(F79,100),0)))) -> 0 | I79: 0 | J79: 2400 | K79: =IF(OR(I79="",J79=""),0,IF(VALUE(I79)>=VALUE(J79),(TIME(TRUNC(J79/100),MOD(J79,100),0))+1-(TIME(TRUNC(I79/100),MOD(I79,100),0)),(TIME(TRUNC(J79/100),MOD(J79,100),0))-(TIME(TRUNC(I79/100),MOD(I79,100),0)))) -> 0
C80: 0 | D80: 2400 | E80: =IF(OR(C80="",D80=""),0,IF(VALUE(C80)>=VALUE(D80),(TIME(TRUNC(D80/100),MOD(D80,100),0))+1-(TIME(TRUNC(C80/100),MOD(C80,100),0)),(TIME(TRUNC(D80/100),MOD(D80,100),0))-(TIME(TRUNC(C80/100),MOD(C80,100),0)))) -> 0 | F80: 0 | G80: 2400 | H80: =IF(OR(F80="",G80=""),0,IF(VALUE(F80)>=VALUE(G80),(TIME(TRUNC(G80/100),MOD(G80,100),0))+1-(TIME(TRUNC(F80/100),MOD(F80,100),0)),(TIME(TRUNC(G80/100),MOD(G80,100),0))-(TIME(TRUNC(F80/100),MOD(F80,100),0)))) -> 0 | I80: 0 | J80: 2400 | K80: =IF(OR(I80="",J80=""),0,IF(VALUE(I80)>=VALUE(J80),(TIME(TRUNC(J80/100),MOD(J80,100),0))+1-(TIME(TRUNC(I80/100),MOD(I80,100),0)),(TIME(TRUNC(J80/100),MOD(J80,100),0))-(TIME(TRUNC(I80/100),MOD(I80,100),0)))) -> 0
C81: 0 | D81: 2400 | E81: 0 | F81: 0 | G81: 2400 | H81: 0 | I81: 0 | J81: 2400 | K81: 0
C82: 0 | D82: 2400 | E82: 0 | F82: 0 | G82: 2400 | H82: 0 | I82: 0 | J82: 2400 | K82: 0
B83: Sammenlagt | D83: =E79+E80+E81+E82 -> 00:00:00 | E83: =E79+E80+E81+E82 -> 0 | G83: =H79+H80+H81+H82 -> 00:00:00 | H83: =H79+H80+H81+H82 -> 0 | J83: =K79+K80+K81+K82 -> 00:00:00 | K83: =K79+K80+K81+K82 -> 0
A84: =A79+1 -> 2024-02-25 | B84: Søndag | C84: 0 | D84: 2400 | E84: =IF(OR(C84="",D84=""),0,IF(VALUE(C84)>=VALUE(D84),(TIME(TRUNC(D84/100),MOD(D84,100),0))+1-(TIME(TRUNC(C84/100),MOD(C84,100),0)),(TIME(TRUNC(D84/100),MOD(D84,100),0))-(TIME(TRUNC(C84/100),MOD(C84,100),0)))) -> 0 | F84: 0 | G84: 2400 | H84: =IF(OR(F84="",G84=""),0,IF(VALUE(F84)>=VALUE(G84),(TIME(TRUNC(G84/100),MOD(G84,100),0))+1-(TIME(TRUNC(F84/100),MOD(F84,100),0)),(TIME(TRUNC(G84/100),MOD(G84,100),0))-(TIME(TRUNC(F84/100),MOD(F84,100),0)))) -> 0 | I84: 0 | J84: 2400 | K84: =IF(OR(I84="",J84=""),0,IF(VALUE(I84)>=VALUE(J84),(TIME(TRUNC(J84/100),MOD(J84,100),0))+1-(TIME(TRUNC(I84/100),MOD(I84,100),0)),(TIME(TRUNC(J84/100),MOD(J84,100),0))-(TIME(TRUNC(I84/100),MOD(I84,100),0)))) -> 0
C85: 0 | D85: 2400 | E85: =IF(OR(C85="",D85=""),0,IF(VALUE(C85)>=VALUE(D85),(TIME(TRUNC(D85/100),MOD(D85,100),0))+1-(TIME(TRUNC(C85/100),MOD(C85,100),0)),(TIME(TRUNC(D85/100),MOD(D85,100),0))-(TIME(TRUNC(C85/100),MOD(C85,100),0)))) -> 0 | F85: 0 | G85: 2400 | H85: =IF(OR(F85="",G85=""),0,IF(VALUE(F85)>=VALUE(G85),(TIME(TRUNC(G85/100),MOD(G85,100),0))+1-(TIME(TRUNC(F85/100),MOD(F85,100),0)),(TIME(TRUNC(G85/100),MOD(G85,100),0))-(TIME(TRUNC(F85/100),MOD(F85,100),0)))) -> 0 | I85: 0 | J85: 2400 | K85: =IF(OR(I85="",J85=""),0,IF(VALUE(I85)>=VALUE(J85),(TIME(TRUNC(J85/100),MOD(J85,100),0))+1-(TIME(TRUNC(I85/100),MOD(I85,100),0)),(TIME(TRUNC(J85/100),MOD(J85,100),0))-(TIME(TRUNC(I85/100),MOD(I85,100),0)))) -> 0
C86: 0 | D86: 2400 | E86: 0 | F86: 0 | G86: 2400 | H86: 0 | I86: 0 | J86: 2400 | K86: 0
C87: 0 | D87: 2400 | E87: 0 | F87: 0 | G87: 2400 | H87: 0 | I87: 0 | J87: 2400 | K87: 0
B88: Sammenlagt | D88: =E84+E85+E86+E87 -> 00:00:00 | E88: =E84+E85+E86+E87 -> 0 | G88: =H84+H85+H86+H87 -> 00:00:00 | H88: =H84+H85+H86+H87 -> 0 | J88: =K84+K85+K86+K87 -> 00:00:00 | K88: =K84+K85+K86+K87 -> 0
B89: =47:89 -> 0 | D89: Sum timer | E89: =(E58+E63+E68+E73+E78+E83+E88)*24+E44 -> 8 | G89: Sum timer | H89: =(H58+H63+H68+H73+H78+H83+H88)*24+H44 -> 6 | J89: Sum timer | K89: =(K58+K63+K68+K73+K78+K83+K88)*24+K44 -> 8 | M89: =SUM(M54:M88)+M44 -> 0 | P89: =SUM(P54:P88)+P44 -> 0 | Q89: =SUM(Q54:Q88)+Q44 -> 0 | R89: =SUM(R54:R88)+R44 -> 0 | S89: 0 | T89: =SUM(T54:T88)+T44 -> 0
C93: Antal timer i lønperiode inkl. døgn | F93: =M89*10+P89+E89 -> 8 | H93: 001 Arbejdstimer
C95: Antal normal timer | F95: =E89+P89 -> 8 | H95: 1213 Normaltimer 1xsats
C98: Timeløn kørsel | E98: 176 | F98: =F95*E98 -> 1408 | K98: Dagstimer | L98: Skriv tidsrum for arbejds timer
C99: Timeløn kontor | E99: 150 | F99: =E99*K89 -> 1200 | K99: Kontortimer | L99: Skriv tidsrum for arbejds timer
C100: Forskudt tid | E100: 38 | F100: =H89*E100 -> 228 | K100: Forskudt tid | L100: Skriv tidsrum for arbejds timer
A101: 10 timer | C101: Døgn | E101: 1926 | F101: =E101*M89 -> 0 | H101: 1415 Døgn
A102: Skattefri | C102: Tærepenge | E102: 150 | F102: =E102*S89 -> 0 | H102: 0007 Skattefri godtgørelse
C103: Tærepenge pr. time | E103: 6.25 | F103: =E103*P89 -> 0 | H103: 0007 Skattefri godtgørelse | K103: døgn | L103: skriv 1 hvis det er aktuelt - ellers skal feltet være blank
C104: Diæt | E104: 135 | F104: =E104*R89 -> 0 | H104: 0086 Diæter | K104: vend ski | L104: skriv 1 hvis det er aktuelt - ellers skal feltet være blank
C105: Vendetillæg ski | E105: 1000 | F105: =Q89*E105 -> 0 | H105: 006A Vend | K105: afgang | L105: skriv hvornår turen starter
C106: Døgn / normaltimertimer | E106: 176 | H106: 1213 Normaltimer 1xsats | K106: slut | L106: skriv når turen er sluttet
K107: timer døgn | L107: skriv antal timer udover døgn
H108: 0037 Sygeløn | K108: diæt | L108: skriv antal diæter
F109: , | H109: 0072 Sygetimer
C110: =F98+F99+F100+F101+F102+F103+F104+F105 -> 2836 | H110: 0037 Sygeløn med AM bidrag 2

Sheet T
A1: 20:00:00 | B1: 06:00:00

Sheet Løn data
A5: Dato | B5: mandag | C5: 2024-12-25
A6: Lønperiode uger | C6: 2-3

Sheet Original (2)
B2: Uge nr. | D2: Navn
B3: 7 | D3: Klaus Schmidt
C8: Starttid 06:00 | D8: Sluttid 20:00 | E8: Forbrugt tid | F8: Timer med tilæg | H8: Starttid 06:00 | I8: Sluttid 20:00 | J8: Forbrugt tid | K8: Udført arbejde/vagt nr. | L8: Døgn | M8: Afgang | N8: Slut | O8: Døgn/Timer | P8: Vend ski | Q8: Diæt | R8: Tærepenge | S8: Tærepenge timer
A9: 2024-02-12 | B9: Mandag | C9: 04:00:00 | D9: 1 | E9: =IF(D9<C9, D9+1, D9) - C9 -> 20:00:00 | F9: =IF(C9<TIME(6,0,0),TIME(6,0,0)-C9,0)+IF(OR(D9<TIME(20,0,0),D9>TIME(0,0,0)),0,D9-TIME(20,0,0))+IF(D9<TIME(20,0,0),IF(D9<TIME(1,0,0),D9+TIME(4,0,0),D9),D9-TIME(20,0,0)) -> 06:00:00 | H9: 0 | I9: 2400 | J9: =IF(OR(H9="",I9=""),0,IF(VALUE(H9)>=VALUE(I9),(TIME(TRUNC(I9/100),MOD(I9,100),0))+1-(TIME(TRUNC(H9/100),MOD(H9,100),0)),(TIME(TRUNC(I9/100),MOD(I9,100),0))-(TIME(TRUNC(H9/100),MOD(H9,100),0)))) -> 0
H10: 0 | I10: 2400 | J10: =IF(OR(H10="",I10=""),0,IF(VALUE(H10)>=VALUE(I10),(TIME(TRUNC(I10/100),MOD(I10,100),0))+1-(TIME(TRUNC(H10/100),MOD(H10,100),0)),(TIME(TRUNC(I10/100),MOD(I10,100),0))-(TIME(TRUNC(H10/100),MOD(H10,100),0)))) -> 0
H11: 0 | I11: 2400 | J11: 0
H12: 0 | I12: 2400 | J12: 0
B13: Sammenlagt | E13: =E9+E10+E11+E12 -> 20:00:00 | F13: =F9+F10+F11+F12 -> 06:00:00 | I13: =J9+J10+J11+J12 -> 00:00:00 | J13: =J9+J10+J11+J12 -> 0
A14: =A9+1 -> 2024-02-13 | B14: Tirsdag | C14: 00:00:00 | D14: 08:00:00 | E14: =IF(D14<C14, D14+1, D14) - C14 -> 08:00:00 | F14: =IF(C14<TIME(6,0,0),TIME(6,0,0)-C14,0)+IF(OR(D14<TIME(20,0,0),D14>TIME(0,0,0)),0,D14-TIME(20,0,0))+IF(D14<TIME(20,0,0),IF(D14<TIME(1,0,0),D14+TIME(4,0,0),D14),D14-TIME(20,0,0)) -> 14:00:00 | H14: 0 | I14: 2400 | J14: =IF(OR(H14="",I14=""),0,IF(VALUE(H14)>=VALUE(I14),(TIME(TRUNC(I14/100),MOD(I14,100),0))+1-(TIME(TRUNC(H14/100),MOD(H14,100),0)),(TIME(TRUNC(I14/100),MOD(I14,100),0))-(TIME(TRUNC(H14/100),MOD(H14,100),0)))) -> 0
H15: 0 | I15: 2400 | J15: =IF(OR(H15="",I15=""),0,IF(VALUE(H15)>=VALUE(I15),(TIME(TRUNC(I15/100),MOD(I15,100),0))+1-(TIME(TRUNC(H15/100),MOD(H15,100),0)),(TIME(TRUNC(I15/100),MOD(I15,100),0))-(TIME(TRUNC(H15/100),MOD(H15,100),0)))) -> 0
H16: 0 | I16: 2400 | J16: 0
H17: 0 | I17: 2400 | J17: 0
B18: Sammenlagt | D18: =E14+E15+E16+E17 -> 08:00:00 | E18: =E14+E15+E16+E17 -> 08:00:00 | F18: =F14+F15+F16+F17 -> 14:00:00 | I18: =J14+J15+J16+J17 -> 00:00:00 | J18: =J14+J15+J16+J17 -> 0
A19: =A14+1 -> 2024-02-14 | B19: Onsdag | H19: 0 | I19: 2400 | J19: =IF(OR(H19="",I19=""),0,IF(VALUE(H19)>=VALUE(I19),(TIME(TRUNC(I19/100),MOD(I19,100),0))+1-(TIME(TRUNC(H19/100),MOD(H19,100),0)),(TIME(TRUNC(I19/100),MOD(I19,100),0))-(TIME(TRUNC(H19/100),MOD(H19,100),0)))) -> 0
H20: 0 | I20: 2400 | J20: =IF(OR(H20="",I20=""),0,IF(VALUE(H20)>=VALUE(I20),(TIME(TRUNC(I20/100),MOD(I20,100),0))+1-(TIME(TRUNC(H20/100),MOD(H20,100),0)),(TIME(TRUNC(I20/100),MOD(I20,100),0))-(TIME(TRUNC(H20/100),MOD(H20,100),0)))) -> 0
H21: 0 | I21: 2400 | J21: 0
H22: 0 | I22: 2400 | J22: 0
B23: Sammenlagt | I23: =J19+J20+J21+J22 -> 00:00:00 | J23: =J19+J20+J21+J22 -> 0
A24: =A19+1 -> 2024-02-15 | B24: Torsdag | H24: 0 | I24: 2400 | J24: =IF(OR(H24="",I24=""),0,IF(VALUE(H24)>=VALUE(I24),(TIME(TRUNC(I24/100),MOD(I24,100),0))+1-(TIME(TRUNC(H24/100),MOD(H24,100),0)),(TIME(TRUNC(I24/100),MOD(I24,100),0))-(TIME(TRUNC(H24/100),MOD(H24,100),0)))) -> 0
H25: 0 | I25: 2400 | J25: =IF(OR(H25="",I25=""),0,IF(VALUE(H25)>=VALUE(I25),(TIME(TRUNC(I25/100),MOD(I25,100),0))+1-(TIME(TRUNC(H25/100),MOD(H25,100),0)),(TIME(TRUNC(I25/100),MOD(I25,100),0))-(TIME(TRUNC(H25/100),MOD(H25,100),0)))) -> 0
H26: 0 | I26: 2400 | J26: 0
H27: 0 | I27: 2400 | J27: 0
B28: Sammenlagt | I28: =J24+J25+J26+J27 -> 00:00:00 | J28: =J24+J25+J26+J27 -> 0
A29: =A24+1 -> 2024-02-16 | B29: Fredag | H29: 0 | I29: 2400 | J29: =IF(OR(H29="",I29=""),0,IF(VALUE(H29)>=VALUE(I29),(TIME(TRUNC(I29/100),MOD(I29,100),0))+1-(TIME(TRUNC(H29/100),MOD(H29,100),0)),(TIME(TRUNC(I29/100),MOD(I29,100),0))-(TIME(TRUNC(H29/100),MOD(H29,100),0)))) -> 0
H30: 0 | I30: 2400 | J30: =IF(OR(H30="",I30=""),0,IF(VALUE(H30)>=VALUE(I30),(TIME(TRUNC(I30/100),MOD(I30,100),0))+1-(TIME(TRUNC(H30/100),MOD(H30,100),0)),(TIME(TRUNC(I30/100),MOD(I30,100),0))-(TIME(TRUNC(H30/100),MOD(H30,100),0)))) -> 0
H31: 0 | I31: 2400 | J31: 0
H32: 0 | I32: 2400 | J32: 0
B33: Sammenlagt | I33: =J29+J30+J31+J32 -> 00:00:00 | J33: =J29+J30+J31+J32 -> 0
A34: =A29+1 -> 2024-02-17 | B34: Lørdag | H34: 0 | I34: 2400 | J34: =IF(OR(H34="",I34=""),0,IF(VALUE(H34)>=VALUE(I34),(TIME(TRUNC(I34/100),MOD(I34,100),0))+1-(TIME(TRUNC(H34/100),MOD(H34,100),0)),(TIME(TRUNC(I34/100),MOD(I34,100),0))-(TIME(TRUNC(H34/100),MOD(H34,100),0)))) -> 0
H35: 0 | I35: 2400 | J35: =IF(OR(H35="",I35=""),0,IF(VALUE(H35)>=VALUE(I35),(TIME(TRUNC(I35/100),MOD(I35,100),0))+1-(TIME(TRUNC(H35/100),MOD(H35,100),0)),(TIME(TRUNC(I35/100),MOD(I35,100),0))-(TIME(TRUNC(H35/100),MOD(H35,100),0)))) -> 0
H36: 0 | I36: 2400 | J36: 0
H37: 0 | I37: 2400 | J37: 0
B38: Sammenlagt | I38: =J34+J35+J36+J37 -> 00:00:00 | J38: =J34+J35+J36+J37 -> 0
A39: =A34+1 -> 2024-02-18 | B39: Søndag | H39: 0 | I39: 2400 | J39: =IF(OR(H39="",I39=""),0,IF(VALUE(H39)>=VALUE(I39),(TIME(TRUNC(I39/100),MOD(I39,100),0))+1-(TIME(TRUNC(H39/100),MOD(H39,100),0)),(TIME(TRUNC(I39/100),MOD(I39,100),0))-(TIME(TRUNC(H39/100),MOD(H39,100),0)))) -> 0
H40: 0 | I40: 2400 | J40: =IF(OR(H40="",I40=""),0,IF(VALUE(H40)>=VALUE(I40),(TIME(TRUNC(I40/100),MOD(I40,100),0))+1-(TIME(TRUNC(H40/100),MOD(H40,100),0)),(TIME(TRUNC(I40/100),MOD(I40,100),0))-(TIME(TRUNC(H40/100),MOD(H40,100),0)))) -> 0
H41: 0 | I41: 2400 | J41: 0
H42: 0 | I42: 2400 | J42: 0
B43: Sammenlagt | I43: =J39+J40+J41+J42 -> 00:00:00 | J43: =J39+J40+J41+J42 -> 0
D44: Sum timer | E44: =(E13+E18+E23+E28+E33+E38+E43)*24 -> 28 | F44: =(F13+F18+F23+F28+F33+F38+F43)*24 -> 20 | I44: Sum timer | J44: =(J13+J18+J23+J28+J33+J38+J43)*24 -> 0 | L44: =SUM(L9:L43) -> 0 | O44: =SUM(O9:O43) -> 0 | P44: =SUM(P9:P43) -> 0 | Q44: =SUM(Q9:Q43) -> 0 | R44: =SUM(R9:R43) -> 0 | S44: =SUM(S9:S43) -> 0
B47: Uge nr. | D47: Navn
B48: 8 | D48: Klaus Schmidt
C53: Starttid 06:00 | D53: Sluttid 20:00 | E53: Forbrugt tid | F53: Forbrugt tid | H53: Starttid 06:00 | I53: Sluttid 20:00 | J53: Forbrugt tid | K53: Udført arbejde/vagt nr. | L53: Døgn | M53: Afgang | N53: Slut | O53: Døgn/Timer | P53: Vend ski | Q53: Diæt | R53: Tærepenge | S53: Tærepenge timer
A54: 2024-02-19 | B54: Mandag | C54: 0 | D54: 2400 | E54: =IF(OR(C54="",D54=""),0,IF(VALUE(C54)>=VALUE(D54),(TIME(TRUNC(D54/100),MOD(D54,100),0))+1-(TIME(TRUNC(C54/100),MOD(C54,100),0)),(TIME(TRUNC(D54/100),MOD(D54,100),0))-(TIME(TRUNC(C54/100),MOD(C54,100),0)))) -> 0 | F54: =IF(OR(#REF!="",#REF!=""),0,IF(VALUE(#REF!)>=VALUE(#REF!),(TIME(TRUNC(#REF!/100),MOD(#REF!,100),0))+1-(TIME(TRUNC(#REF!/100),MOD(#REF!,100),0)),(TIME(TRUNC(#REF!/100),MOD(#REF!,100),0))-(TIME(TRUNC(#REF!/100),MOD(#REF!,100),0)))) ->  | H54: 0 | I54: 2400 | J54: =IF(OR(H54="",I54=""),0,IF(VALUE(H54)>=VALUE(I54),(TIME(TRUNC(I54/100),MOD(I54,100),0))+1-(TIME(TRUNC(H54/100),MOD(H54,100),0)),(TIME(TRUNC(I54/100),MOD(I54,100),0))-(TIME(TRUNC(H54/100),MOD(H54,100),0)))) -> 0
C55: 0 | D55: 2400 | E55: =IF(OR(C55="",D55=""),0,IF(VALUE(C55)>=VALUE(D55),(TIME(TRUNC(D55/100),MOD(D55,100),0))+1-(TIME(TRUNC(C55/100),MOD(C55,100),0)),(TIME(TRUNC(D55/100),MOD(D55,100),0))-(TIME(TRUNC(C55/100),MOD(C55,100),0)))) -> 0 | F55: =IF(OR(#REF!="",#REF!=""),0,IF(VALUE(#REF!)>=VALUE(#REF!),(TIME(TRUNC(#REF!/100),MOD(#REF!,100),0))+1-(TIME(TRUNC(#REF!/100),MOD(#REF!,100),0)),(TIME(TRUNC(#REF!/100),MOD(#REF!,100),0))-(TIME(TRUNC(#REF!/100),MOD(#REF!,100),0)))) ->  | H55: 0 | I55: 2400 | J55: =IF(OR(H55="",I55=""),0,IF(VALUE(H55)>=VALUE(I55),(TIME(TRUNC(I55/100),MOD(I55,100),0))+1-(TIME(TRUNC(H55/100),MOD(H55,100),0)),(TIME(TRUNC(I55/100),MOD(I55,100),0))-(TIME(TRUNC(H55/100),MOD(H55,100),0)))) -> 0
C56: 0 | D56: 2400 | E56: 0 | F56: =IF(OR(#REF!="",#REF!=""),0,IF(VALUE(#REF!)>=VALUE(#REF!),(TIME(TRUNC(#REF!/100),MOD(#REF!,100),0))+1-(TIME(TRUNC(#REF!/100),MOD(#REF!,100),0)),(TIME(TRUNC(#REF!/100),MOD(#REF!,100),0))-(TIME(TRUNC(#REF!/100),MOD(#REF!,100),0)))) ->  | H56: 0 | I56: 2400 | J56: 0
C57: 0 | D57: 2400 | E57: 0 | F57: =IF(OR(#REF!="",#REF!=""),0,IF(VALUE(#REF!)>=VALUE(#REF!),(TIME(TRUNC(#REF!/100),MOD(#REF!,100),0))+1-(TIME(TRUNC(#REF!/100),MOD(#REF!,100),0)),(TIME(TRUNC(#REF!/100),MOD(#REF!,100),0))-(TIME(TRUNC(#REF!/100),MOD(#REF!,100),0)))) ->  | H57: 0 | I57: 2400 | J57: 0
B58: Sammenlagt | D58: =E54+E55+E56+E57 -> 00:00:00 | E58: =E54+E55+E56+E57 -> 0 | F58: =F54+F55+F56+F57 ->  | I58: =J54+J55+J56+J57 -> 00:00:00 | J58: =J54+J55+J56+J57 -> 0
A59: =A54+1 -> 2024-02-20 | B59: Tirsdag | C59: 0 | D59: 2400 | E59: =IF(OR(C59="",D59=""),0,IF(VALUE(C59)>=VALUE(D59),(TIME(TRUNC(D59/100),MOD(D59,100),0))+1-(TIME(TRUNC(C59/100),MOD(C59,100),0)),(TIME(TRUNC(D59/100),MOD(D59,100),0))-(TIME(TRUNC(C59/100),MOD(C59,100),0)))) -> 0 | F59: =IF(OR(#REF!="",#REF!=""),0,IF(VALUE(#REF!)>=VALUE(#REF!),(TIME(TRUNC(#REF!/100),MOD(#REF!,100),0))+1-(TIME(TRUNC(#REF!/100),MOD(#REF!,100),0)),(TIME(TRUNC(#REF!/100),MOD(#REF!,100),0))-(TIME(TRUNC(#REF!/100),MOD(#REF!,100),0)))) ->  | H59: 0 | I59: 2400 | J59: =IF(OR(H59="",I59=""),0,IF(VALUE(H59)>=VALUE(I59),(TIME(TRUNC(I59/100),MOD(I59,100),0))+1-(TIME(TRUNC(H59/100),MOD(H59,100),0)),(TIME(TRUNC(I59/100),MOD(I59,100),0))-(TIME(TRUNC(H59/100),MOD(H59,100),0)))) -> 0
C60: 0 | D60: 2400 | E60: =IF(OR(C60="",D60=""),0,IF(VALUE(C60)>=VALUE(D60),(TIME(TRUNC(D60/100),MOD(D60,100),0))+1-(TIME(TRUNC(C60/100),MOD(C60,100),0)),(TIME(TRUNC(D60/100),MOD(D60,100),0))-(TIME(TRUNC(C60/100),MOD(C60,100),0)))) -> 0 | F60: =IF(OR(#REF!="",#REF!=""),0,IF(VALUE(#REF!)>=VALUE(#REF!),(TIME(TRUNC(#REF!/100),MOD(#REF!,100),0))+1-(TIME(TRUNC(#REF!/100),MOD(#REF!,100),0)),(TIME(TRUNC(#REF!/100),MOD(#REF!,100),0))-(TIME(TRUNC(#REF!/100),MOD(#REF!,100),0)))) ->  | H60: 0 | I60: 2400 | J60: =IF(OR(H60="",I60=""),0,IF(VALUE(H60)>=VALUE(I60),(TIME(TRUNC(I60/100),MOD(I60,100),0))+1-(TIME(TRUNC(H60/100),MOD(H60,100),0)),(TIME(TRUNC(I60/100),MOD(I60,100),0))-(TIME(TRUNC(H60/100),MOD(H60,100),0)))) -> 0
C61: 0 | D61: 2400 | E61: 0 | F61: =IF(OR(#REF!="",#REF!=""),0,IF(VALUE(#REF!)>=VALUE(#REF!),(TIME(TRUNC(#REF!/100),MOD(#REF!,100),0))+1-(TIME(TRUNC(#REF!/100),MOD(#REF!,100),0)),(TIME(TRUNC(#REF!/100),MOD(#REF!,100),0))-(TIME(TRUNC(#REF!/100),MOD(#REF!,100),0)))) ->  | H61: 0 | I61: 2400 | J61: 0
C62: 0 | D62: 2400 | E62: 0 | F62: =IF(OR(#REF!="",#REF!=""),0,IF(VALUE(#REF!)>=VALUE(#REF!),(TIME(TRUNC(#REF!/100),MOD(#REF!,100),0))+1-(TIME(TRUNC(#REF!/100),MOD(#REF!,100),0)),(TIME(TRUNC(#REF!/100),MOD(#REF!,100),0))-(TIME(TRUNC(#REF!/100),MOD(#REF!,100),0)))) ->  | H62: 0 | I62: 2400 | J62: 0
B63: Sammenlagt | D63: =E59+E60+E61+E62 -> 00:00:00 | E63: =E59+E60+E61+E62 -> 0 | F63: =F59+F60+F61+F62 ->  | I63: =J59+J60+J61+J62 -> 00:00:00 | J63: =J59+J60+J61+J62 -> 0
A64: =A59+1 -> 2024-02-21 | B64: Onsdag | C64: 0 | D64: 2400 | E64: =IF(OR(C64="",D64=""),0,IF(VALUE(C64)>=VALUE(D64),(TIME(TRUNC(D64/100),MOD(D64,100),0))+1-(TIME(TRUNC(C64/100),MOD(C64,100),0)),(TIME(TRUNC(D64/100),MOD(D64,100),0))-(TIME(TRUNC(C64/100),MOD(C64,100),0)))) -> 0 | F64: =IF(OR(#REF!="",#REF!=""),0,IF(VALUE(#REF!)>=VALUE(#REF!),(TIME(TRUNC(#REF!/100),MOD(#REF!,100),0))+1-(TIME(TRUNC(#REF!/100),MOD(#REF!,100),0)),(TIME(TRUNC(#REF!/100),MOD(#REF!,100),0))-(TIME(TRUNC(#REF!/100),MOD(#REF!,100),0)))) ->  | H64: 0 | I64: 2400 | J64: =IF(OR(H64="",I64=""),0,IF(VALUE(H64)>=VALUE(I64),(TIME(TRUNC(I64/100),MOD(I64,100),0))+1-(TIME(TRUNC(H64/100),MOD(H64,100),0)),(TIME(TRUNC(I64/100),MOD(I64,100),0))-(TIME(TRUNC(H64/100),MOD(H64,100),0)))) -> 0
C65: 0 | D65: 2400 | E65: =IF(OR(C65="",D65=""),0,IF(VALUE(C65)>=VALUE(D65),(TIME(TRUNC(D65/100),MOD(D65,100),0))+1-(TIME(TRUNC(C65/100),MOD(C65,100),0)),(TIME(TRUNC(D65/100),MOD(D65,100),0))-(TIME(TRUNC(C65/100),MOD(C65,100),0)))) -> 0 | F65: =IF(OR(#REF!="",#REF!=""),0,IF(VALUE(#REF!)>=VALUE(#REF!),(TIME(TRUNC(#REF!/100),MOD(#REF!,100),0))+1-(TIME(TRUNC(#REF!/100),MOD(#REF!,100),0)),(TIME(TRUNC(#REF!/100),MOD(#REF!,100),0))-(TIME(TRUNC(#REF!/100),MOD(#REF!,100),0)))) ->  | H65: 0 | I65: 2400 | J65: =IF(OR(H65="",I65=""),0,IF(VALUE(H65)>=VALUE(I65),(TIME(TRUNC(I65/100),MOD(I65,100),0))+1-(TIME(TRUNC(H65/100),MOD(H65,100),0)),(TIME(TRUNC(I65/100),MOD(I65,100),0))-(TIME(TRUNC(H65/100),MOD(H65,100),0)))) -> 0
C66: 0 | D66: 2400 | E66: 0 | F66: =IF(OR(#REF!="",#REF!=""),0,IF(VALUE(#REF!)>=VALUE(#REF!),(TIME(TRUNC(#REF!/100),MOD(#REF!,100),0))+1-(TIME(TRUNC(#REF!/100),MOD(#REF!,100),0)),(TIME(TRUNC(#REF!/100),MOD(#REF!,100),0))-(TIME(TRUNC(#REF!/100),MOD(#REF!,100),0)))) ->  | H66: 0 | I66: 2400 | J66: 0
C67: 0 | D67: 2400 | E67: 0 | F67: =IF(OR(#REF!="",#REF!=""),0,IF(VALUE(#REF!)>=VALUE(#REF!),(TIME(TRUNC(#REF!/100),MOD(#REF!,100),0))+1-(TIME(TRUNC(#REF!/100),MOD(#REF!,100),0)),(TIME(TRUNC(#REF!/100),MOD(#REF!,100),0))-(TIME(TRUNC(#REF!/100),MOD(#REF!,100),0)))) ->  | H67: 0 | I67: 2400 | J67: 0
B68: Sammenlagt | D68: =E64+E65+E66+E67 -> 00:00:00 | E68: =E64+E65+E66+E67 -> 0 | F68: =F64+F65+F66+F67 ->  | I68: =J64+J65+J66+J67 -> 00:00:00 | J68: =J64+J65+J66+J67 -> 0
A69: =A64+1 -> 2024-02-22 | B69: Torsdag | C69: 0 | D69: 2400 | E69: =IF(OR(C69="",D69=""),0,IF(VALUE(C69)>=VALUE(D69),(TIME(TRUNC(D69/100),MOD(D69,100),0))+1-(TIME(TRUNC(C69/100),MOD(C69,100),0)),(TIME(TRUNC(D69/100),MOD(D69,100),0))-(TIME(TRUNC(C69/100),MOD(C69,100),0)))) -> 0 | F69: =IF(OR(#REF!="",#REF!=""),0,IF(VALUE(#REF!)>=VALUE(#REF!),(TIME(TRUNC(#REF!/100),MOD(#REF!,100),0))+1-(TIME(TRUNC(#REF!/100),MOD(#REF!,100),0)),(TIME(TRUNC(#REF!/100),MOD(#REF!,100),0))-(TIME(TRUNC(#REF!/100),MOD(#REF!,100),0)))) ->  | H69: 0 | I69: 2400 | J69: =IF(OR(H69="",I69=""),0,IF(VALUE(H69)>=VALUE(I69),(TIME(TRUNC(I69/100),MOD(I69,100),0))+1-(TIME(TRUNC(H69/100),MOD(H69,100),0)),(TIME(TRUNC(I69/100),MOD(I69,100),0))-(TIME(TRUNC(H69/100),MOD(H69,100),0)))) -> 0
C70: 0 | D70: 2400 | E70: =IF(OR(C70="",D70=""),0,IF(VALUE(C70)>=VALUE(D70),(TIME(TRUNC(D70/100),MOD(D70,100),0))+1-(TIME(TRUNC(C70/100),MOD(C70,100),0)),(TIME(TRUNC(D70/100),MOD(D70,100),0))-(TIME(TRUNC(C70/100),MOD(C70,100),0)))) -> 0 | F70: =IF(OR(#REF!="",#REF!=""),0,IF(VALUE(#REF!)>=VALUE(#REF!),(TIME(TRUNC(#REF!/100),MOD(#REF!,100),0))+1-(TIME(TRUNC(#REF!/100),MOD(#REF!,100),0)),(TIME(TRUNC(#REF!/100),MOD(#REF!,100),0))-(TIME(TRUNC(#REF!/100),MOD(#REF!,100),0)))) ->  | H70: 0 | I70: 2400 | J70: =IF(OR(H70="",I70=""),0,IF(VALUE(H70)>=VALUE(I70),(TIME(TRUNC(I70/100),MOD(I70,100),0))+1-(TIME(TRUNC(H70/100),MOD(H70,100),0)),(TIME(TRUNC(I70/100),MOD(I70,100),0))-(TIME(TRUNC(H70/100),MOD(H70,100),0)))) -> 0
C71: 0 | D71: 2400 | E71: 0 | F71: =IF(OR(#REF!="",#REF!=""),0,IF(VALUE(#REF!)>=VALUE(#REF!),(TIME(TRUNC(#REF!/100),MOD(#REF!,100),0))+1-(TIME(TRUNC(#REF!/100),MOD(#REF!,100),0)),(TIME(TRUNC(#REF!/100),MOD(#REF!,100),0))-(TIME(TRUNC(#REF!/100),MOD(#REF!,100),0)))) ->  | H71: 0 | I71: 2400 | J71: 0
C72: 0 | D72: 2400 | E72: 0 | F72: =IF(OR(#REF!="",#REF!=""),0,IF(VALUE(#REF!)>=VALUE(#REF!),(TIME(TRUNC(#REF!/100),MOD(#REF!,100),0))+1-(TIME(TRUNC(#REF!/100),MOD(#REF!,100),0)),(TIME(TRUNC(#REF!/100),MOD(#REF!,100),0))-(TIME(TRUNC(#REF!/100),MOD(#REF!,100),0)))) ->  | H72: 0 | I72: 2400 | J72: 0
B73: Sammenlagt | D73: =E69+E70+E71+E72 -> 00:00:00 | E73: =E69+E70+E71+E72 -> 0 | F73: =F69+F70+F71+F72 ->  | I73: =J69+J70+J71+J72 -> 00:00:00 | J73: =J69+J70+J71+J72 -> 0
A74: =A69+1 -> 2024-02-23 | B74: Fredag | C74: 0 | D74: 2400 | E74: =IF(OR(C74="",D74=""),0,IF(VALUE(C74)>=VALUE(D74),(TIME(TRUNC(D74/100),MOD(D74,100),0))+1-(TIME(TRUNC(C74/100),MOD(C74,100),0)),(TIME(TRUNC(D74/100),MOD(D74,100),0))-(TIME(TRUNC(C74/100),MOD(C74,100),0)))) -> 0 | F74: =IF(OR(#REF!="",#REF!=""),0,IF(VALUE(#REF!)>=VALUE(#REF!),(TIME(TRUNC(#REF!/100),MOD(#REF!,100),0))+1-(TIME(TRUNC(#REF!/100),MOD(#REF!,100),0)),(TIME(TRUNC(#REF!/100),MOD(#REF!,100),0))-(TIME(TRUNC(#REF!/100),MOD(#REF!,100),0)))) ->  | H74: 0 | I74: 2400 | J74: =IF(OR(H74="",I74=""),0,IF(VALUE(H74)>=VALUE(I74),(TIME(TRUNC(I74/100),MOD(I74,100),0))+1-(TIME(TRUNC(H74/100),MOD(H74,100),0)),(TIME(TRUNC(I74/100),MOD(I74,100),0))-(TIME(TRUNC(H74/100),MOD(H74,100),0)))) -> 0
C75: 0 | D75: 2400 | E75: =IF(OR(C75="",D75=""),0,IF(VALUE(C75)>=VALUE(D75),(TIME(TRUNC(D75/100),MOD(D75,100),0))+1-(TIME(TRUNC(C75/100),MOD(C75,100),0)),(TIME(TRUNC(D75/100),MOD(D75,100),0))-(TIME(TRUNC(C75/100),MOD(C75,100),0)))) -> 0 | F75: =IF(OR(#REF!="",#REF!=""),0,IF(VALUE(#REF!)>=VALUE(#REF!),(TIME(TRUNC(#REF!/100),MOD(#REF!,100),0))+1-(TIME(TRUNC(#REF!/100),MOD(#REF!,100),0)),(TIME(TRUNC(#REF!/100),MOD(#REF!,100),0))-(TIME(TRUNC(#REF!/100),MOD(#REF!,100),0)))) ->  | H75: 0 | I75: 2400 | J75: =IF(OR(H75="",I75=""),0,IF(VALUE(H75)>=VALUE(I75),(TIME(TRUNC(I75/100),MOD(I75,100),0))+1-(TIME(TRUNC(H75/100),MOD(H75,100),0)),(TIME(TRUNC(I75/100),MOD(I75,100),0))-(TIME(TRUNC(H75/100),MOD(H75,100),0)))) -> 0
C76: 0 | D76: 2400 | E76: 0 | F76: =IF(OR(#REF!="",#REF!=""),0,IF(VALUE(#REF!)>=VALUE(#REF!),(TIME(TRUNC(#REF!/100),MOD(#REF!,100),0))+1-(TIME(TRUNC(#REF!/100),MOD(#REF!,100),0)),(TIME(TRUNC(#REF!/100),MOD(#REF!,100),0))-(TIME(TRUNC(#REF!/100),MOD(#REF!,100),0)))) ->  | H76: 0 | I76: 2400 | J76: 0
C77: 0 | D77: 2400 | E77: 0 | F77: =IF(OR(#REF!="",#REF!=""),0,IF(VALUE(#REF!)>=VALUE(#REF!),(TIME(TRUNC(#REF!/100),MOD(#REF!,100),0))+1-(TIME(TRUNC(#REF!/100),MOD(#REF!,100),0)),(TIME(TRUNC(#REF!/100),MOD(#REF!,100),0))-(TIME(TRUNC(#REF!/100),MOD(#REF!,100),0)))) ->  | H77: 0 | I77: 2400 | J77: 0
B78: Sammenlagt | D78: =E74+E75+E76+E77 -> 00:00:00 | E78: =E74+E75+E76+E77 -> 0 | F78: =F74+F75+F76+F77 ->  | I78: =J74+J75+J76+J77 -> 00:00:00 | J78: =J74+J75+J76+J77 -> 0
A79: =A74+1 -> 2024-02-24 | B79: Lørdag | C79: 0 | D79: 2400 | E79: =IF(OR(C79="",D79=""),0,IF(VALUE(C79)>=VALUE(D79),(TIME(TRUNC(D79/100),MOD(D79,100),0))+1-(TIME(TRUNC(C79/100),MOD(C79,100),0)),(TIME(TRUNC(D79/100),MOD(D79,100),0))-(TIME(TRUNC(C79/100),MOD(C79,100),0)))) -> 0 | F79: =IF(OR(#REF!="",#REF!=""),0,IF(VALUE(#REF!)>=VALUE(#REF!),(TIME(TRUNC(#REF!/100),MOD(#REF!,100),0))+1-(TIME(TRUNC(#REF!/100),MOD(#REF!,100),0)),(TIME(TRUNC(#REF!/100),MOD(#REF!,100),0))-(TIME(TRUNC(#REF!/100),MOD(#REF!,100),0)))) ->  | H79: 0 | I79: 2400 | J79: =IF(OR(H79="",I79=""),0,IF(VALUE(H79)>=VALUE(I79),(TIME(TRUNC(I79/100),MOD(I79,100),0))+1-(TIME(TRUNC(H79/100),MOD(H79,100),0)),(TIME(TRUNC(I79/100),MOD(I79,100),0))-(TIME(TRUNC(H79/100),MOD(H79,100),0)))) -> 0
C80: 0 | D80: 2400 | E80: =IF(OR(C80="",D80=""),0,IF(VALUE(C80)>=VALUE(D80),(TIME(TRUNC(D80/100),MOD(D80,100),0))+1-(TIME(TRUNC(C80/100),MOD(C80,100),0)),(TIME(TRUNC(D80/100),MOD(D80,100),0))-(TIME(TRUNC(C80/100),MOD(C80,100),0)))) -> 0 | F80: =IF(OR(#REF!="",#REF!=""),0,IF(VALUE(#REF!)>=VALUE(#REF!),(TIME(TRUNC(#REF!/100),MOD(#REF!,100),0))+1-(TIME(TRUNC(#REF!/100),MOD(#REF!,100),0)),(TIME(TRUNC(#REF!/100),MOD(#REF!,100),0))-(TIME(TRUNC(#REF!/100),MOD(#REF!,100),0)))) ->  | H80: 0 | I80: 2400 | J80: =IF(OR(H80="",I80=""),0,IF(VALUE(H80)>=VALUE(I80),(TIME(TRUNC(I80/100),MOD(I80,100),0))+1-(TIME(TRUNC(H80/100),MOD(H80,100),0)),(TIME(TRUNC(I80/100),MOD(I80,100),0))-(TIME(TRUNC(H80/100),MOD(H80,100),0)))) -> 0
C81: 0 | D81: 2400 | E81: 0 | F81: =IF(OR(#REF!="",#REF!=""),0,IF(VALUE(#REF!)>=VALUE(#REF!),(TIME(TRUNC(#REF!/100),MOD(#REF!,100),0))+1-(TIME(TRUNC(#REF!/100),MOD(#REF!,100),0)),(TIME(TRUNC(#REF!/100),MOD(#REF!,100),0))-(TIME(TRUNC(#REF!/100),MOD(#REF!,100),0)))) ->  | H81: 0 | I81: 2400 | J81: 0
C82: 0 | D82: 2400 | E82: 0 | F82: =IF(OR(#REF!="",#REF!=""),0,IF(VALUE(#REF!)>=VALUE(#REF!),(TIME(TRUNC(#REF!/100),MOD(#REF!,100),0))+1-(TIME(TRUNC(#REF!/100),MOD(#REF!,100),0)),(TIME(TRUNC(#REF!/100),MOD(#REF!,100),0))-(TIME(TRUNC(#REF!/100),MOD(#REF!,100),0)))) ->  | H82: 0 | I82: 2400 | J82: 0
B83: Sammenlagt | D83: =E79+E80+E81+E82 -> 00:00:00 | E83: =E79+E80+E81+E82 -> 0 | F83: =F79+F80+F81+F82 ->  | I83: =J79+J80+J81+J82 -> 00:00:00 | J83: =J79+J80+J81+J82 -> 0
A84: =A79+1 -> 2024-02-25 | B84: Søndag | C84: 0 | D84: 2400 | E84: =IF(OR(C84="",D84=""),0,IF(VALUE(C84)>=VALUE(D84),(TIME(TRUNC(D84/100),MOD(D84,100),0))+1-(TIME(TRUNC(C84/100),MOD(C84,100),0)),(TIME(TRUNC(D84/100),MOD(D84,100),0))-(TIME(TRUNC(C84/100),MOD(C84,100),0)))) -> 0 | F84: =IF(OR(#REF!="",#REF!=""),0,IF(VALUE(#REF!)>=VALUE(#REF!),(TIME(TRUNC(#REF!/100),MOD(#REF!,100),0))+1-(TIME(TRUNC(#REF!/100),MOD(#REF!,100),0)),(TIME(TRUNC(#REF!/100),MOD(#REF!,100),0))-(TIME(TRUNC(#REF!/100),MOD(#REF!,100),0)))) ->  | H84: 0 | I84: 2400 | J84: =IF(OR(H84="",I84=""),0,IF(VALUE(H84)>=VALUE(I84),(TIME(TRUNC(I84/100),MOD(I84,100),0))+1-(TIME(TRUNC(H84/100),MOD(H84,100),0)),(TIME(TRUNC(I84/100),MOD(I84,100),0))-(TIME(TRUNC(H84/100),MOD(H84,100),0)))) -> 0
C85: 0 | D85: 2400 | E85: =IF(OR(C85="",D85=""),0,IF(VALUE(C85)>=VALUE(D85),(TIME(TRUNC(D85/100),MOD(D85,100),0))+1-(TIME(TRUNC(C85/100),MOD(C85,100),0)),(TIME(TRUNC(D85/100),MOD(D85,100),0))-(TIME(TRUNC(C85/100),MOD(C85,100),0)))) -> 0 | F85: =IF(OR(#REF!="",#REF!=""),0,IF(VALUE(#REF!)>=VALUE(#REF!),(TIME(TRUNC(#REF!/100),MOD(#REF!,100),0))+1-(TIME(TRUNC(#REF!/100),MOD(#REF!,100),0)),(TIME(TRUNC(#REF!/100),MOD(#REF!,100),0))-(TIME(TRUNC(#REF!/100),MOD(#REF!,100),0)))) ->  | H85: 0 | I85: 2400 | J85: =IF(OR(H85="",I85=""),0,IF(VALUE(H85)>=VALUE(I85),(TIME(TRUNC(I85/100),MOD(I85,100),0))+1-(TIME(TRUNC(H85/100),MOD(H85,100),0)),(TIME(TRUNC(I85/100),MOD(I85,100),0))-(TIME(TRUNC(H85/100),MOD(H85,100),0)))) -> 0
C86: 0 | D86: 2400 | E86: 0 | F86: =IF(OR(#REF!="",#REF!=""),0,IF(VALUE(#REF!)>=VALUE(#REF!),(TIME(TRUNC(#REF!/100),MOD(#REF!,100),0))+1-(TIME(TRUNC(#REF!/100),MOD(#REF!,100),0)),(TIME(TRUNC(#REF!/100),MOD(#REF!,100),0))-(TIME(TRUNC(#REF!/100),MOD(#REF!,100),0)))) ->  | H86: 0 | I86: 2400 | J86: 0
C87: 0 | D87: 2400 | E87: 0 | F87: =IF(OR(#REF!="",#REF!=""),0,IF(VALUE(#REF!)>=VALUE(#REF!),(TIME(TRUNC(#REF!/100),MOD(#REF!,100),0))+1-(TIME(TRUNC(#REF!/100),MOD(#REF!,100),0)),(TIME(TRUNC(#REF!/100),MOD(#REF!,100),0))-(TIME(TRUNC(#REF!/100),MOD(#REF!,100),0)))) ->  | H87: 0 | I87: 2400 | J87: 0
B88: Sammenlagt | D88: =E84+E85+E86+E87 -> 00:00:00 | E88: =E84+E85+E86+E87 -> 0 | F88: =F84+F85+F86+F87 ->  | I88: =J84+J85+J86+J87 -> 00:00:00 | J88: =J84+J85+J86+J87 -> 0
B89: =47:89 -> 0 | D89: Sum timer | E89: =(E58+E63+E68+E73+E78+E83+E88)*24+E44 -> 28 | F89: =(F58+F63+F68+F73+F78+F83+F88)*24+F44 ->  | I89: Sum timer | J89: =(J58+J63+J68+J73+J78+J83+J88)*24+J44 -> 0 | L89: =SUM(L54:L88)+L44 -> 0 | O89: =SUM(O54:O88)+O44 -> 0 | P89: =SUM(P54:P88)+P44 -> 0 | Q89: =SUM(Q54:Q88)+Q44 -> 0 | R89: =SUM(R54:R88)+R44 -> 0 | S89: =SUM(S54:S88)+S44 -> 0
B93: Antal timer i lønperiode inkl. døgn | E93: =L89*10+O89+E89 -> 28 | F93: 001 Arbejdstimer
B95: Antal normal timer | E95: =E89+O89 -> 28 | F95: 1213 Normaltimer 1xsats
B98: Timeløn kørsel | D98: 176 | E98: =E95*D98 -> 4928 | J98: Dagstimer | K98: Skriv tidsrum for arbejds timer
B99: Timeløn kontor | D99: 150 | E99: =D99*J89 -> 0 | J99: Kontortimer | K99: Skriv tidsrum for arbejds timer
B100: Forskudt tid | D100: 38 | E100: =F89*D100 ->  | J100: Forskudt tid | K100: Skriv tidsrum for arbejds timer
A101: 10 timer | B101: Døgn | D101: 1926 | E101: =D101*L89 -> 0 | F101: 1415 Døgn
A102: Skattefri | B102: Tærepenge | D102: 150 | E102: =D102*L89 -> 0 | F102: 0007 Skattefri godtgørelse
B103: Tærepenge pr. time | D103: 6.25 | E103: =D103*O89 -> 0 | F103: 0007 Skattefri godtgørelse | J103: døgn | K103: skriv 1 hvis det er aktuelt - ellers skal feltet være blank
B104: Diæt | D104: 135 | E104: =D104*Q89 -> 0 | F104: 0086 Diæter | J104: vend ski | K104: skriv 1 hvis det er aktuelt - ellers skal feltet være blank
B105: Vendetillæg ski | D105: 1000 | E105: =P89*D105 -> 0 | F105: 006A Vend | J105: afgang | K105: skriv hvornår turen starter
B106: Døgn / normaltimertimer | D106: 176 | F106: 1213 Normaltimer 1xsats | J106: slut | K106: skriv når turen er sluttet
J107: timer døgn | K107: skriv antal timer udover døgn
F108: 0037 Sygeløn | J108: diæt | K108: skriv antal diæter
F109: 0072 Sygetimer
C110: =E98+E99+E100+E101+E102+E103+E104+E105 ->  | F110: 0037 Sygeløn med AM bidrag 2

Sheet Ark2
A1: 800 | B1: 1600 | C1: =B1-A1 -> 800
A2: 0 | B2: 2400 | D2: =IF(OR(B2="",C2=""),0,IF(VALUE(B2)>=VALUE(C2),(TIME(TRUNC(C2/100),MOD(C2,100),0))+1-(TIME(TRUNC(B2/100),MOD(B2,100),0)),(TIME(TRUNC(C2/100),MOD(C2,100),0))-(TIME(TRUNC(B2/100),MOD(B2,100),0)))) -> 0
A3: 0 | B3: 2400 | C3: =IF(OR(A3="",B3=""),0,IF(VALUE(A3)>=VALUE(B3),(TIME(TRUNC(B3/100),MOD(B3,100),0))+1-(TIME(TRUNC(A3/100),MOD(A3,100),0)),(TIME(TRUNC(B3/100),MOD(B3,100),0))-(TIME(TRUNC(A3/100),MOD(A3,100),0)))) -> 0 | D3: =IF(OR(B3="",C3=""),0,IF(VALUE(B3)>=VALUE(C3),(TIME(TRUNC(C3/100),MOD(C3,100),0))+1-(TIME(TRUNC(B3/100),MOD(B3,100),0)),(TIME(TRUNC(C3/100),MOD(C3,100),0))-(TIME(TRUNC(B3/100),MOD(B3,100),0)))) -> 1
A4: 0 | B4: 2400 | C4: =IF(OR(A4="",B4=""),0,IF(VALUE(A4)>=VALUE(B4),(TIME(TRUNC(B4/100),MOD(B4,100),0))+1-(TIME(TRUNC(A4/100),MOD(A4,100),0)),(TIME(TRUNC(B4/100),MOD(B4,100),0))-(TIME(TRUNC(A4/100),MOD(A4,100),0)))) -> 0 | D4: =IF(OR(B4="",C4=""),0,IF(VALUE(B4)>=VALUE(C4),(TIME(TRUNC(C4/100),MOD(C4,100),0))+1-(TIME(TRUNC(B4/100),MOD(B4,100),0)),(TIME(TRUNC(C4/100),MOD(C4,100),0))-(TIME(TRUNC(B4/100),MOD(B4,100),0)))) -> 1
B5: =C1+C2+C3+C4 -> 800 | C5: =C1+C2+C3+C4 -> 800 | D5: =D1+D2+D3+D4 -> 2
A6: 0 | B6: 2400 | C6: =IF(OR(A6="",B6=""),0,IF(VALUE(A6)>=VALUE(B6),(TIME(TRUNC(B6/100),MOD(B6,100),0))+1-(TIME(TRUNC(A6/100),MOD(A6,100),0)),(TIME(TRUNC(B6/100),MOD(B6,100),0))-(TIME(TRUNC(A6/100),MOD(A6,100),0)))) -> 0 | D6: 1
A7: 0 | B7: 2400 | C7: 0 | D7: 1
A8: 0 | B8: 2400 | C8: 0 | D8: 1
A9: 0 | B9: 2400 | C9: 0 | D9: 1
B10: =C6+C7+C8+C9 -> 00:00:00 | C10: =C6+C7+C8+C9 -> 0 | D10: =D6+D7+D8+D9 -> 4
A11: 0 | B11: 2400 | C11: =IF(OR(A11="",B11=""),0,IF(VALUE(A11)>=VALUE(B11),(TIME(TRUNC(B11/100),MOD(B11,100),0))+1-(TIME(TRUNC(A11/100),MOD(A11,100),0)),(TIME(TRUNC(B11/100),MOD(B11,100),0))-(TIME(TRUNC(A11/100),MOD(A11,100),0)))) -> 0 | D11: 1
A12: 0 | B12: 2400 | C12: 0 | D12: 1
A13: 0 | B13: 2400 | C13: 0 | D13: 1
A14: 0 | B14: 2400 | C14: 0 | D14: 1
B15: =C11+C12+C13+C14 -> 00:00:00 | C15: =C11+C12+C13+C14 -> 0 | D15: =D11+D12+D13+D14 -> 4
A16: 0 | B16: 2400 | C16: =IF(OR(A16="",B16=""),0,IF(VALUE(A16)>=VALUE(B16),(TIME(TRUNC(B16/100),MOD(B16,100),0))+1-(TIME(TRUNC(A16/100),MOD(A16,100),0)),(TIME(TRUNC(B16/100),MOD(B16,100),0))-(TIME(TRUNC(A16/100),MOD(A16,100),0)))) -> 0 | D16: 1
A17: 0 | B17: 2400 | C17: 0 | D17: 1
A18: 0 | B18: 2400 | C18: 0 | D18: 1
A19: 0 | B19: 2400 | C19: 0 | D19: 1
B20: =C16+C17+C18+C19 -> 00:00:00 | C20: =C16+C17+C18+C19 -> 0 | D20: =D16+D17+D18+D19 -> 4
A21: 0 | B21: 2400 | C21: =IF(OR(A21="",B21=""),0,IF(VALUE(A21)>=VALUE(B21),(TIME(TRUNC(B21/100),MOD(B21,100),0))+1-(TIME(TRUNC(A21/100),MOD(A21,100),0)),(TIME(TRUNC(B21/100),MOD(B21,100),0))-(TIME(TRUNC(A21/100),MOD(A21,100),0)))) -> 0 | D21: 1
A22: 0 | B22: 2400 | C22: 0 | D22: 1
A23: 0 | B23: 2400 | C23: 0 | D23: 1
A24: 0 | B24: 2400 | C24: 0 | D24: 1
B25: =C21+C22+C23+C24 -> 00:00:00 | C25: =C21+C22+C23+C24 -> 0 | D25: =D21+D22+D23+D24 -> 4
A26: 0 | B26: 2400 | C26: =IF(OR(A26="",B26=""),0,IF(VALUE(A26)>=VALUE(B26),(TIME(TRUNC(B26/100),MOD(B26,100),0))+1-(TIME(TRUNC(A26/100),MOD(A26,100),0)),(TIME(TRUNC(B26/100),MOD(B26,100),0))-(TIME(TRUNC(A26/100),MOD(A26,100),0)))) -> 0 | D26: 1
A27: 0 | B27: 2400 | C27: 0 | D27: 1
A28: 0 | B28: 2400 | C28: 0 | D28: 1
A29: 0 | B29: 2400 | C29: 0 | D29: 1
B30: =C26+C27+C28+C29 -> 00:00:00 | C30: =C26+C27+C28+C29 -> 0 | D30: =D26+D27+D28+D29 -> 4
A31: 0 | B31: 2400 | C31: =IF(OR(A31="",B31=""),0,IF(VALUE(A31)>=VALUE(B31),(TIME(TRUNC(B31/100),MOD(B31,100),0))+1-(TIME(TRUNC(A31/100),MOD(A31,100),0)),(TIME(TRUNC(B31/100),MOD(B31,100),0))-(TIME(TRUNC(A31/100),MOD(A31,100),0)))) -> 0 | D31: 1
A32: 0 | B32: 2400 | C32: 0 | D32: 1
A33: 0 | B33: 2400 | C33: 0 | D33: 1
A34: 0 | B34: 2400 | C34: 0 | D34: 1
B35: =C31+C32+C33+C34 -> 00:00:00 | C35: =C31+C32+C33+C34 -> 0 | D35: =D31+D32+D33+D34 -> 4
B36: Sum timer | C36: =(C5+C10+C15+C20+C25+C30+C35)*24 -> 19200 | D36: =(D5+D10+D15+D20+D25+D30+D35)*24 -> 624
